bitfinex-derivatives/quotes_BTCF0:USTF0_20250910
["timestamp","ask_amount","ask_price","bid_price","bid_amount"]
[1757485929350,0.19982901,111830.0,111820.0,0.16653936]
[1757485929650,0.19982901,111830.0,111820.0,0.17833936]
[1757485930251,0.19982901,111830.0,111820.0,0.16753936]
[1757485933056,0.19982901,111830.0,111820.0,0.02499]
[1757485933243,0.19982901,111830.0,111820.0,0.16753936]
[1757485933644,0.19982901,111830.0,111820.0,0.02499]
[1757485933850,0.19982901,111830.0,111820.0,0.16753936]
[1757485934050,0.19982901,111830.0,111820.0,0.002]
[1757485934251,0.34237837,111830.0,111820.0,0.002]
[1757485934452,0.59237837,111830.0,111820.0,0.002]
[1757485935561,0.03454,111820.0,111810.0,0.16590936]
[1757485935857,0.34126837,111820.0,111810.0,0.16580936]
[1757485936649,0.19871901,111820.0,111810.0,0.16580936]
[1757485937256,0.17708936,111820.0,111810.0,0.16680936]
[1757485938561,0.17708936,111820.0,111810.0,0.16780936]
[1757485939258,0.0001,111830.0,111820.0,0.03506]
[1757485939456,0.02114,111840.0,111830.0,0.03314]
[1757485939662,0.17728936,111850.0,111840.0,0.03454]
[1757485939866,0.19883101,111850.0,111840.0,0.17708936]
[1757485941063,0.05628165,111850.0,111840.0,0.17708936]
[1757485941262,0.05628165,111850.0,111840.0,0.31963872]
[1757485941564,0.16358936,111850.0,111840.0,0.31963872]
[1757485941948,0.16658936,111850.0,111840.0,0.31963872]
[1757485942351,0.17708936,111850.0,111840.0,0.31963872]
[1757485942553,0.17708936,111850.0,111840.0,0.16680936]
[1757485945768,0.17708936,111850.0,111840.0,0.30935872]
[1757485946466,0.17708936,111850.0,111840.0,0.31035872]
[1757485947864,0.02104,111850.0,111840.0,0.33042104]
[1757485948070,0.0001,111860.0,111850.0,0.03114]
[1757485948268,0.0136,111870.0,111860.0,0.03506]
[1757485948269,0.0001,111870.0,111860.0,0.03506]
[1757485948566,0.02114,111880.0,111870.0,0.03314]
[1757485948769,0.03454,111870.0,111860.0,0.0001]
[1757485948970,0.03454,111860.0,111850.0,0.16590936]
[1757485949167,0.17708936,111860.0,111850.0,0.16580936]
[1757485949564,0.34124217,111860.0,111850.0,0.02326]
[1757485949762,0.03454,111850.0,111840.0,0.0011]
[1757485950072,0.34124501,111850.0,111840.0,0.001]
[1757485950663,0.34124501,111850.0,111830.0,0.0001]
[1757485950869,0.03454,111840.0,111830.0,0.02336]
[1757485951060,0.31963872,111840.0,111830.0,0.02326]
[1757485951670,0.31863872,111840.0,111830.0,0.02326]
[1757485952469,0.31863872,111840.0,111830.0,0.02526]
[1757485953162,0.31763872,111840.0,111830.0,0.02526]
[1757485954071,0.31763872,111840.0,111830.0,0.02726]
[1757485955265,0.73179952,111840.0,111830.0,0.004]
[1757485955569,0.58925016,111840.0,111830.0,0.004]
[1757485956473,0.49429004,111840.0,111830.0,0.004]
[1757485957963,0.49429004,111840.0,111830.0,0.02726]
[1757485958366,0.14922074,111840.0,111830.0,0.02726]
[1757485958569,0.05415144,111840.0,111830.0,0.3802093]
[1757485958769,0.1086693,111850.0,111830.0,0.3802093]
[1757485958965,0.02104,111840.0,111830.0,0.1303093]
[1757485959271,0.02104,111840.0,111830.0,0.1302093]
[1757485959673,0.02104,111840.0,111830.0,0.3802093]
[1757485959875,0.0136,111850.0,111830.0,0.3802093]
[1757485960070,0.1086693,111850.0,111830.0,0.1303093]
[1757485960268,0.13028131,111850.0,111830.0,0.1303093]
[1757485960669,0.1086693,111850.0,111830.0,0.1303093]
[1757485961173,0.02104,111840.0,111830.0,0.1303093]
[1757485961474,0.02104,111840.0,111830.0,0.1302093]
[1757485961770,0.0225,111840.0,111830.0,0.1302093]
[1757485962676,0.0225,111840.0,111830.0,0.1282093]
[1757485962878,0.2265886,111840.0,111830.0,0.02726]
[1757485963065,0.2265886,111840.0,111830.0,0.004]
[1757485963268,0.2265886,111840.0,111830.0,0.02547]
[1757485963476,0.2265886,111840.0,111830.0,0.02347]
[1757485963673,0.2265886,111840.0,111830.0,0.02547]
[1757485964870,0.1315193,111840.0,111830.0,0.02547]
[1757485965274,0.1315193,111840.0,111830.0,0.004]
[1757485966269,0.2265886,111840.0,111830.0,0.004]
[1757485967167,0.49821491,111840.0,111830.0,0.004]
[1757485970373,0.49921491,111840.0,111830.0,0.002]
[1757485970870,0.03645,111830.0,111820.0,0.02157]
[1757485971176,0.15314561,111830.0,111820.0,0.02147]
[1757485971372,0.1315193,111830.0,111820.0,0.02147]
[1757485971574,0.01395,111820.0,111810.0,0.04898508]
[1757485971778,0.1315193,111820.0,111810.0,0.03972767]
[1757485972276,0.1315193,111820.0,111810.0,0.13479697]
[1757485972478,0.1305193,111820.0,111810.0,0.13479697]
[1757485972878,0.1305193,111820.0,111810.0,0.03972767]
[1757485973379,0.1305193,111820.0,111810.0,0.04172767]
[1757485974578,0.1305193,111820.0,111810.0,0.03972767]
[1757485975279,0.2255886,111820.0,111810.0,0.04072767]
[1757485975475,0.2255886,111820.0,111810.0,0.01925767]
[1757485975675,0.50619349,111820.0,111810.0,0.001]
[1757485975981,0.49719158,111820.0,111810.0,0.001]
[1757485977181,0.49919158,111820.0,111810.0,0.001]
[1757485979375,0.03645,111800.0,111790.0,0.04863896]
[1757485979878,0.03645,111800.0,111790.0,0.14370826]
[1757485982077,0.02273417,111810.0,111800.0,0.03231]
[1757485982383,0.03658417,111810.0,111800.0,0.1165393]
[1757485982581,0.13165347,111810.0,111800.0,0.1165393]
[1757485983381,0.13265347,111810.0,111800.0,0.1165393]
[1757485986784,0.13265347,111810.0,111800.0,0.02147]
[1757485987982,0.13265347,111810.0,111800.0,0.1165393]
[1757485988385,0.13265347,111810.0,111800.0,0.02147]
[1757485989779,0.13265347,111810.0,111800.0,0.1165393]
[1757485989980,0.13265347,111810.0,111800.0,0.02147]
[1757485990181,0.13265347,111810.0,111800.0,0.1165393]
[1757485991489,0.02363417,111810.0,111800.0,0.1273793]
[1757485991784,0.00113417,111810.0,111800.0,0.4724486]
[1757485995388,0.00113417,111810.0,111800.0,0.53647017]
[1757485995782,0.00113417,111810.0,111800.0,1.35139017]
[1757485998190,0.02429417,111810.0,111800.0,0.34633157]
[1757485998391,0.02429417,111810.0,111800.0,1.2871286]
[1757485998690,0.00113417,111810.0,111800.0,1.2871286]
[1757485999394,0.00113417,111810.0,111800.0,1.0371286]
[1757485999595,0.02429417,111810.0,111800.0,1.0371286]
[1757486000995,0.00113417,111810.0,111800.0,1.0371286]
[1757486001197,0.00113417,111810.0,111800.0,1.2871286]
[1757486001499,0.00113417,111810.0,111800.0,1.44058437]
[1757486002489,0.00113417,111810.0,111800.0,1.35115017]
[1757486010103,0.00113417,111810.0,111800.0,1.16101157]
[1757486010306,0.00113417,111810.0,111800.0,1.35115017]
[1757486012305,0.0001,111820.0,111810.0,0.0117]
[1757486012605,0.0001,111830.0,111820.0,0.03002]
[1757486012905,0.02326,111840.0,111830.0,0.03442]
[1757486013099,0.02316,111840.0,111830.0,0.03442]
[1757486013297,0.02316,111840.0,111830.0,0.1294893]
[1757486013493,0.036,111840.0,111830.0,0.9438893]
[1757486013704,0.036,111840.0,111830.0,0.1294893]
[1757486013905,0.036,111840.0,111830.0,0.4906093]
[1757486015805,0.036,111840.0,111830.0,0.49969556]
[1757486016705,0.036,111840.0,111830.0,0.50069556]
[1757486018397,0.036,111840.0,111830.0,0.40562626]
[1757486018602,0.036,111840.0,111830.0,0.54816807]
[1757486019107,0.036,111840.0,111830.0,0.18704807]
[1757486019607,0.036,111840.0,111830.0,0.18804807]
[1757486024714,0.05761197,111840.0,111830.0,0.18804807]
[1757486025412,0.036,111840.0,111830.0,0.18804807]
[1757486026924,0.05761329,111840.0,111830.0,0.18804807]
[1757486027210,0.036,111840.0,111830.0,0.03322626]
[1757486027415,0.036,111840.0,111830.0,0.17576807]
[1757486029417,0.17854181,111840.0,111830.0,0.17576807]
[1757486030418,0.20016074,111840.0,111830.0,0.17576807]
[1757486030612,0.17854181,111840.0,111830.0,0.17576807]
[1757486031317,0.20016189,111840.0,111830.0,0.17576807]
[1757486031520,0.17854181,111840.0,111830.0,0.17576807]
[1757486031713,0.20016189,111840.0,111830.0,0.17576807]
[1757486034621,0.05762008,111840.0,111830.0,0.17576807]
[1757486035721,0.05762008,111840.0,111830.0,0.18804807]
[1757486039226,0.5927037,111840.0,111830.0,0.002]
[1757486039824,0.5927037,111840.0,111830.0,0.02389]
[1757486040220,0.5927037,111840.0,111830.0,0.002]
[1757486040921,0.5927037,111840.0,111830.0,0.001]
[1757486041328,0.66483519,111840.0,111820.0,0.1515613]
[1757486041628,0.27239338,111840.0,111830.0,0.02189]
[1757486041922,0.01327,111830.0,111820.0,0.1515613]
[1757486042124,0.0345,111830.0,111820.0,0.1733513]
[1757486042316,0.05612008,111830.0,111820.0,0.1733513]
[1757486042716,0.05612008,111830.0,111820.0,0.32788311]
[1757486042919,0.04285008,111830.0,111820.0,0.32888311]
[1757486044023,0.04285008,111830.0,111820.0,0.32788311]
[1757486044231,0.44866189,111830.0,111820.0,0.02402417]
[1757486044524,0.5912037,111830.0,111820.0,0.00313417]
[1757486044725,0.66404958,111830.0,111820.0,0.00313417]
[1757486044921,0.52150777,111830.0,111820.0,0.00313417]
[1757486045324,0.52150777,111830.0,111820.0,0.00213417]
[1757486045528,0.52150777,111830.0,111820.0,0.00313417]
[1757486045834,0.44866189,111830.0,111820.0,0.00313417]
[1757486047030,0.44866189,111830.0,111820.0,0.00113417]
[1757486047227,0.30612008,111830.0,111820.0,0.00113417]
[1757486047427,0.44866189,111830.0,111820.0,0.00113417]
[1757486048127,0.5912037,111830.0,111820.0,0.00113417]
[1757486049030,0.66116719,111830.0,111820.0,0.00013417]
[1757486049229,0.67002862,111830.0,111820.0,0.00013417]
[1757486050228,0.51862538,111830.0,111820.0,0.00013417]
[1757486050424,0.12608357,111830.0,111820.0,0.16456598]
[1757486050630,0.26862538,111830.0,111820.0,0.16456598]
[1757486050831,0.26962538,111830.0,111820.0,0.16456598]
[1757486053334,0.26862538,111830.0,111820.0,0.16456598]
[1757486053532,0.26862538,111830.0,111820.0,0.16556598]
[1757486053729,0.19866189,111830.0,111820.0,0.16556598]
[1757486054536,0.19866189,111830.0,111820.0,0.02302417]
[1757486055035,0.17704181,111830.0,111820.0,0.16556598]
[1757486055334,0.19851393,111830.0,111820.0,0.16556598]
[1757486056433,0.05597212,111830.0,111820.0,0.16556598]
[1757486056734,0.19851393,111830.0,111820.0,0.16656598]
[1757486058932,0.17704181,111830.0,111820.0,0.16656598]
[1757486059127,0.19847824,111830.0,111820.0,0.16656598]
[1757486060031,0.19847824,111830.0,111820.0,0.02402417]
[1757486060430,0.19847824,111830.0,111820.0,0.00213417]
[1757486060632,0.34102005,111830.0,111820.0,0.00213417]
[1757486061334,0.34102005,111830.0,111820.0,0.00113417]
[1757486061538,0.34102005,111830.0,111820.0,0.00213417]
[1757486062733,0.59102005,111830.0,111820.0,0.00213417]
[1757486064141,0.59102005,111830.0,111820.0,0.00113417]
[1757486064341,0.59102005,111830.0,111820.0,0.00013417]
[1757486064541,0.59102005,111830.0,111820.0,0.00113417]
[1757486064743,1.40514005,111830.0,111820.0,0.00113417]
[1757486065245,1.40814005,111830.0,111820.0,0.00013417]
[1757486065640,0.03518,111820.0,111810.0,0.0001]
[1757486065836,0.03518,111790.0,111780.0,0.24669909]
[1757486066036,0.17772181,111790.0,111780.0,0.18267752]
[1757486066235,0.17772181,111790.0,111780.0,0.04013571]
[1757486066440,0.03518,111780.0,111770.0,0.02167]
[1757486066636,0.32026362,111780.0,111770.0,0.03084777]
[1757486066940,0.32026362,111780.0,111770.0,0.02167]
[1757486067342,0.32026362,111780.0,111770.0,0.16421181]
[1757486067540,0.17772181,111780.0,111770.0,0.16421181]
[1757486067947,0.17772181,111780.0,111770.0,0.17312049]
[1757486068648,0.17772181,111780.0,111770.0,0.17412049]
[1757486069950,0.32026362,111780.0,111770.0,0.02267]
[1757486070146,0.32026362,111780.0,111770.0,0.16521181]
[1757486070537,0.32026362,111780.0,111770.0,0.16621181]
[1757486071450,0.32026362,111780.0,111770.0,0.1750909]
[1757486071852,0.17772181,111780.0,111770.0,0.1750909]
[1757486072454,0.32026362,111780.0,111770.0,0.1750909]
[1757486072650,0.17772181,111780.0,111770.0,0.1750909]
[1757486074554,0.17772181,111780.0,111770.0,0.03254909]
[1757486074854,0.17772181,111780.0,111770.0,0.1750909]
[1757486076048,0.32026362,111780.0,111770.0,0.02367]
[1757486076352,0.32026362,111780.0,111770.0,0.002]
[1757486076857,0.32026362,111780.0,111770.0,0.02367]
[1757486078456,0.13033604,111780.0,111770.0,0.02267]
[1757486079251,0.13033604,111780.0,111770.0,0.02167]
[1757486079457,0.03518,111780.0,111770.0,0.11682604]
[1757486079660,0.13033604,111780.0,111770.0,0.11682604]
[1757486079860,0.03518,111780.0,111770.0,0.11682604]
[1757486080767,0.03518,111780.0,111770.0,0.12570604]
[1757486080768,0.02134,111780.0,111770.0,0.12570604]
[1757486081371,0.03513,111780.0,111770.0,0.12570604]
[1757486081866,0.03513,111780.0,111770.0,0.02267]
[1757486082170,0.13028604,111780.0,111770.0,0.11782604]
[1757486082870,0.13028604,111780.0,111770.0,0.11882604]
[1757486084474,0.13028604,111780.0,111770.0,0.02367]
[1757486084670,0.13028604,111780.0,111770.0,0.11882604]
[1757486084972,0.13028604,111780.0,111770.0,0.02367]
[1757486087373,0.13028604,111780.0,111770.0,0.02267]
[1757486087573,0.13028604,111780.0,111770.0,0.001]
[1757486088176,0.13028604,111780.0,111760.0,0.09515604]
[1757486088371,0.13038604,111780.0,111760.0,0.09515604]
[1757486088576,0.13038604,111780.0,111770.0,0.02206]
[1757486088875,0.13028604,111780.0,111770.0,0.02206]
[1757486089175,0.1517522,111780.0,111770.0,0.02206]
[1757486091874,0.05659616,111780.0,111770.0,0.02206]
[1757486092374,0.1517522,111780.0,111770.0,0.02206]
[1757486094973,0.1517522,111780.0,111770.0,0.02306]
[1757486096080,0.1517522,111780.0,111770.0,0.02406]
[1757486096379,0.04280616,111780.0,111770.0,0.13120604]
[1757486096577,0.02146616,111780.0,111770.0,0.47636208]
[1757486097182,0.01407417,111790.0,111770.0,0.38120604]
[1757486097373,0.05862161,111790.0,111780.0,0.11721604]
[1757486097573,0.04468161,111790.0,111780.0,0.22450208]
[1757486099376,0.02314417,111790.0,111780.0,0.22450208]
[1757486099681,0.02314417,111790.0,111780.0,0.22550208]
[1757486099884,0.02314417,111790.0,111780.0,0.22650208]
[1757486100087,0.04442603,111790.0,111780.0,0.22650208]
[1757486101382,0.02314417,111790.0,111780.0,0.22650208]
[1757486103182,0.00013417,111790.0,111780.0,0.22650208]
[1757486103389,0.02314417,111790.0,111780.0,0.22650208]
[1757486103791,0.00013417,111790.0,111780.0,0.22650208]
[1757486104189,0.02314417,111790.0,111780.0,0.22650208]
[1757486104391,0.02314417,111790.0,111780.0,0.03619]
[1757486104587,0.02314417,111790.0,111780.0,0.22650208]
[1757486105596,0.03693417,111790.0,111780.0,0.13134604]
[1757486105796,0.13209021,111790.0,111780.0,0.02406]
[1757486106091,0.40335082,111790.0,111780.0,0.002]
[1757486106486,0.40335082,111790.0,111780.0,0.02406]
[1757486106889,0.40335082,111790.0,111780.0,0.02306]
[1757486107088,0.40335082,111790.0,111780.0,0.02206]
[1757486107792,0.30819478,111790.0,111780.0,0.02206]
[1757486107994,0.40335082,111790.0,111780.0,0.02206]
[1757486109195,0.40435082,111790.0,111780.0,0.02206]
[1757486111491,0.40435082,111790.0,111780.0,0.11721604]
[1757486112287,0.05919478,111790.0,111780.0,0.11721604]
[1757486113198,0.15435082,111790.0,111780.0,0.11721604]
[1757486113393,0.15335082,111790.0,111780.0,0.11721604]
[1757486115397,0.05819478,111790.0,111780.0,0.11721604]
[1757486115594,0.04440478,111790.0,111780.0,0.12920604]
[1757486115797,0.04440478,111790.0,111780.0,0.47436208]
[1757486115992,0.04440478,111790.0,111780.0,0.37920604]
[1757486115993,0.02314417,111790.0,111780.0,0.37920604]
[1757486117096,0.03633417,111790.0,111780.0,0.36721604]
[1757486117298,0.13149021,111790.0,111780.0,0.36721604]
[1757486117899,0.13149021,111790.0,111780.0,0.11721604]
[1757486118097,0.13149021,111790.0,111780.0,0.02206]
[1757486122700,0.13149021,111790.0,111780.0,0.11721604]
[1757486122701,0.03633417,111790.0,111780.0,0.11721604]
[1757486126590,0.03633417,111790.0,111780.0,0.12920604]
[1757486126801,0.03633417,111790.0,111780.0,0.11721604]
[1757486127102,0.05718747,111790.0,111780.0,0.11721604]
[1757486127700,0.03633417,111790.0,111780.0,0.11721604]
[1757486128001,0.13149021,111790.0,111780.0,0.11721604]
[1757486129403,0.15234441,111790.0,111780.0,0.11721604]
[1757486129903,0.13149021,111790.0,111780.0,0.11721604]
[1757486131008,0.02314417,111790.0,111780.0,0.12920604]
[1757486131503,0.03633417,111790.0,111780.0,0.11721604]
[1757486131906,0.03633417,111790.0,111780.0,0.02206]
[1757486132105,0.13149021,111790.0,111780.0,0.02206]
[1757486132404,0.13149021,111790.0,111780.0,0.11721604]
[1757486138409,0.17902713,111790.0,111780.0,0.16475296]
[1757486139209,0.17902713,111790.0,111780.0,0.02206]
[1757486139406,0.17902713,111790.0,111780.0,0.16475296]
[1757486145012,0.17902713,111790.0,111780.0,0.22877453]
[1757486147110,0.18670283,111790.0,111780.0,0.17674296]
[1757486147613,0.20033283,111790.0,111780.0,0.17674296]
[1757486148216,0.20033283,111790.0,111780.0,0.16475296]
[1757486155320,0.18670283,111790.0,111780.0,0.17674296]
[1757486155821,0.20033283,111790.0,111780.0,0.16475296]
[1757486156620,0.04400987,111790.0,111780.0,0.31943592]
[1757486156917,0.00013417,111790.0,111780.0,0.63345749]
[1757486157122,0.00013417,111790.0,111780.0,0.56943592]
[1757486157624,0.00013417,111790.0,111780.0,1.44732567]
[1757486158624,0.00013417,111790.0,111780.0,1.45032567]
[1757486159426,0.00013417,111790.0,111780.0,1.45232567]
[1757486160626,0.00013417,111790.0,111780.0,1.38803592]
[1757486161026,0.00013417,111790.0,111780.0,1.45229225]
[1757486162926,0.02248417,111790.0,111780.0,1.45225225]
[1757486163530,0.02248417,111790.0,111780.0,1.45221225]
[1757486168038,0.02248417,111790.0,111780.0,0.63869225]
[1757486168337,0.02248417,111790.0,111780.0,0.09131633]
[1757486168338,0.57150009,111790.0,111780.0,0.09131633]
[1757486168529,0.57150009,111790.0,111780.0,0.02706]
[1757486168734,0.42880713,111790.0,111780.0,0.02706]
[1757486168935,0.57150009,111790.0,111780.0,0.02706]
[1757486169135,0.57150009,111790.0,111780.0,0.005]
[1757486170933,0.42880713,111790.0,111780.0,0.02637]
[1757486173838,0.42880713,111790.0,111780.0,0.16906296]
[1757486174742,0.42880713,111790.0,111780.0,0.005]
[1757486174946,0.42880713,111790.0,111750.0,0.02304]
[1757486174947,0.01329,111760.0,111750.0,0.02304]
[1757486175244,0.17729296,111760.0,111750.0,0.16573296]
[1757486175938,0.17729296,111760.0,111750.0,0.17476957]
[1757486176139,0.17729296,111760.0,111750.0,0.18838957]
[1757486176140,0.02131,111760.0,111750.0,0.18838957]
[1757486177644,0.02131,111760.0,111750.0,0.19238957]
[1757486178441,0.02131,111760.0,111750.0,0.18838957]
[1757486178945,0.02131,111760.0,111750.0,0.43838957]
[1757486179144,0.15621713,111770.0,111750.0,0.43838957]
[1757486179340,0.17752713,111770.0,111760.0,0.17509296]
[1757486179540,0.17742713,111770.0,111760.0,0.17509296]
[1757486179943,0.17742713,111770.0,111760.0,0.16573296]
[1757486180449,0.0346,111760.0,111750.0,0.98820957]
[1757486180642,0.17729296,111760.0,111750.0,0.98820957]
[1757486181045,0.17729296,111760.0,111750.0,0.98920957]
[1757486183342,0.0346,111760.0,111750.0,0.98920957]
[1757486185452,0.02131,111760.0,111750.0,1.00282957]
[1757486186349,0.0346,111760.0,111750.0,0.98920957]
[1757486186747,0.17729296,111760.0,111750.0,0.16673296]
[1757486186945,0.31998592,111760.0,111750.0,0.98017296]
[1757486187144,0.17729296,111760.0,111750.0,0.98017296]
[1757486187448,0.31998592,111760.0,111750.0,0.16673296]
[1757486187652,0.56998592,111760.0,111750.0,0.001]
[1757486188552,0.0346,111760.0,111750.0,0.02404]
[1757486188851,0.01352417,111770.0,111750.0,1.45688909]
[1757486189053,0.17752713,111770.0,111760.0,0.16573296]
[1757486189350,0.17742713,111770.0,111760.0,0.16573296]
[1757486189540,0.03473417,111770.0,111760.0,0.30842592]
[1757486189741,0.02144417,111770.0,111760.0,0.31778592]
[1757486190954,0.02144417,111770.0,111760.0,0.17509296]
[1757486191753,0.03473417,111770.0,111760.0,0.17509296]
[1757486192355,0.17742713,111770.0,111760.0,0.17609296]
[1757486193748,0.17742713,111770.0,111760.0,0.02404]
[1757486193946,0.17742713,111770.0,111760.0,0.16673296]
[1757486195658,0.02144417,111770.0,111760.0,0.31878592]
[1757486197051,0.00013417,111770.0,111760.0,0.56878592]
[1757486199161,0.00013417,111770.0,111760.0,0.63304225]
[1757486199666,0.0001,111780.0,111770.0,0.03503]
[1757486199880,0.0001,111790.0,111780.0,0.03591]
[1757486200168,0.02131,111790.0,111780.0,0.32129592]
[1757486200467,0.02131,111790.0,111780.0,0.13101538]
[1757486201857,0.02231,111790.0,111780.0,0.13101538]
[1757486202567,0.02331,111790.0,111780.0,0.13101538]
[1757486203263,0.0371,111790.0,111780.0,0.94429538]
[1757486204368,0.0371,111790.0,111780.0,0.84919]
[1757486204564,0.0371,111790.0,111780.0,0.94429538]
[1757486204765,0.0361,111790.0,111780.0,0.94429538]
[1757486205064,0.0371,111790.0,111780.0,0.94429538]
[1757486205666,0.0361,111790.0,111780.0,0.94429538]
[1757486205866,0.02131,111790.0,111780.0,0.94429538]
[1757486206978,0.02131,111790.0,111780.0,0.13101538]
[1757486207170,0.13020538,111790.0,111780.0,0.02304]
[1757486207368,0.13020538,111790.0,111780.0,0.11814538]
[1757486207671,0.38020538,111790.0,111780.0,0.02304]
[1757486207860,0.02131,111790.0,111780.0,0.13022538]
[1757486208067,0.02289,111800.0,111790.0,0.03495]
[1757486208263,0.01339,111810.0,111790.0,0.13005538]
[1757486208458,0.03618,111810.0,111800.0,0.11727538]
[1757486208662,0.03608,111810.0,111800.0,0.11727538]
[1757486209571,0.13118538,111810.0,111800.0,0.02217]
[1757486209973,0.13318538,111810.0,111800.0,0.02217]
[1757486210569,0.13418538,111810.0,111800.0,0.02217]
[1757486212474,0.01379,111800.0,111790.0,0.11740955]
[1757486212778,0.03658,111800.0,111790.0,0.13018955]
[1757486213678,0.03858,111800.0,111790.0,0.13018955]
[1757486214379,0.02479,111800.0,111790.0,0.13018955]
[1757486216075,0.03858,111800.0,111790.0,0.13018955]
[1757486216274,0.03858,111800.0,111790.0,0.11740955]
[1757486218780,0.002,111800.0,111790.0,0.13018955]
[1757486219174,0.02479,111800.0,111790.0,0.13018955]
[1757486219980,0.03858,111800.0,111790.0,0.94322955]
[1757486220171,0.02479,111800.0,111790.0,0.94322955]
[1757486223280,0.002,111800.0,111790.0,0.94322955]
[1757486223677,0.02479,111800.0,111790.0,0.94322955]
[1757486226985,0.03858,111800.0,111790.0,0.93036955]
[1757486227284,0.13368538,111800.0,111790.0,0.93032955]
[1757486227485,0.13368538,111800.0,111790.0,0.11740955]
[1757486227682,0.13368538,111800.0,111790.0,0.93032955]
[1757486227884,0.03858,111800.0,111790.0,0.93032955]
[1757486229181,0.02479,111800.0,111790.0,0.94310955]
[1757486229492,0.002,111800.0,111790.0,0.94310955]
[1757486231781,0.02479,111800.0,111790.0,0.84800417]
[1757486232087,0.02479,111800.0,111790.0,0.94310955]
[1757486233188,0.02479,111800.0,111790.0,0.13018955]
[1757486233389,0.02479,111800.0,111790.0,0.94306955]
[1757486233882,0.002,111800.0,111790.0,0.94306955]
[1757486235089,0.002,111800.0,111790.0,1.00732588]
[1757486236091,0.002,111800.0,111790.0,0.94306955]
[1757486236998,0.02352,111800.0,111790.0,0.94306955]
[1757486237196,0.04467429,111800.0,111790.0,0.94306955]
[1757486237992,0.04467429,111800.0,111790.0,0.13018955]
[1757486238193,0.04467429,111800.0,111790.0,0.83738955]
[1757486239096,0.0001,111810.0,111800.0,0.03158]
[1757486239292,0.02162,111820.0,111810.0,0.03416]
[1757486239595,0.02152,111820.0,111810.0,0.94210538]
[1757486240395,0.02162,111830.0,111820.0,0.03346]
[1757486240585,0.01389,111840.0,111820.0,0.22367076]
[1757486240586,0.0001,111840.0,111820.0,0.22367076]
[1757486240793,0.04292028,111840.0,111830.0,0.94206538]
[1757486240998,0.04282028,111840.0,111830.0,0.94206538]
[1757486242500,0.04882028,111840.0,111830.0,0.94206538]
[1757486242694,0.006,111840.0,111830.0,1.03717076]
[1757486243097,0.006,111840.0,111830.0,1.04632747]
[1757486243299,0.006,111840.0,111830.0,0.48352747]
[1757486243507,0.006,111840.0,111830.0,1.31462102]
[1757486244797,0.01,111840.0,111830.0,1.31462102]
[1757486245397,0.01,111840.0,111830.0,0.50186102]
[1757486245596,0.01,111840.0,111830.0,1.31458102]
[1757486246100,0.0001,111850.0,111840.0,0.03158]
[1757486246398,0.01275,111860.0,111840.0,0.22179076]
[1757486246597,0.01275,111860.0,111850.0,0.92916538]
[1757486246598,0.03427,111860.0,111850.0,0.92916538]
[1757486246796,0.03417,111860.0,111850.0,0.92916538]
[1757486246997,0.03417,111860.0,111850.0,0.11648538]
[1757486247198,0.03417,111860.0,111850.0,0.92916538]
[1757486250004,0.03717,111860.0,111850.0,0.92916538]
[1757486251002,0.03717,111860.0,111850.0,0.11648538]
[1757486251401,0.03717,111860.0,111850.0,0.02138]
[1757486251602,0.03717,111860.0,111850.0,0.11648538]
[1757486253203,0.13227538,111860.0,111850.0,0.11648538]
[1757486253396,0.02452,111860.0,111850.0,0.11648538]
[1757486253594,0.02452,111860.0,111850.0,0.12926538]
[1757486254002,0.003,111860.0,111850.0,0.22437076]
[1757486255397,0.003,111860.0,111850.0,0.47437076]
[1757486257095,0.003,111860.0,111850.0,0.49278946]
[1757486259398,0.003,111860.0,111850.0,0.24278946]
[1757486260109,0.003,111860.0,111850.0,0.49278946]
[1757486260303,0.003,111860.0,111850.0,0.58743938]
[1757486260510,0.003,111860.0,111850.0,0.67683228]
[1757486261102,0.0001,111870.0,111860.0,0.00908]
[1757486261408,0.0001,111880.0,111870.0,0.03449]
[1757486261705,0.15518034,111890.0,111870.0,0.17692034]
[1757486261908,0.17686034,111890.0,111880.0,0.16414034]
[1757486262106,0.03433,111890.0,111880.0,0.30657068]
[1757486262307,0.17676034,111890.0,111880.0,0.16414034]
[1757486263009,0.03433,111890.0,111880.0,0.02171]
[1757486263308,0.17676034,111890.0,111880.0,0.16414034]
[1757486263608,0.17876034,111890.0,111880.0,0.16414034]
[1757486264807,0.02368,111890.0,111880.0,0.31677068]
[1757486265110,0.02568,111890.0,111880.0,0.31677068]
[1757486266112,0.03954,111890.0,111880.0,0.31677068]
[1757486267017,0.03954,111890.0,111880.0,0.17434034]
[1757486267210,0.18197034,111890.0,111880.0,0.17434034]
[1757486267515,0.20309508,111890.0,111880.0,0.17434034]
[1757486269212,0.06066474,111890.0,111880.0,0.17434034]
[1757486269412,0.06066474,111890.0,111880.0,0.31677068]
[1757486269613,0.04680474,111890.0,111880.0,0.31677068]
[1757486270410,0.04680474,111890.0,111880.0,0.32562344]
[1757486271103,0.18923508,111890.0,111880.0,0.32562344]
[1757486271712,0.20309508,111890.0,111880.0,0.31677068]
[1757486271912,0.20309508,111890.0,111880.0,0.17434034]
[1757486273714,0.20310828,111890.0,111880.0,0.17434034]
[1757486274114,0.04681794,111890.0,111880.0,0.32558491]
[1757486276119,0.06067794,111890.0,111880.0,0.03052423]
[1757486276310,0.20310828,111890.0,111880.0,0.17295457]
[1757486277818,0.20310828,111890.0,111880.0,0.16414034]
[1757486278118,0.06067794,111890.0,111880.0,0.16414034]
[1757486278312,0.20310828,111890.0,111880.0,0.16414034]
[1757486279115,0.20310828,111890.0,111880.0,0.3255957]
[1757486279316,0.20310828,111890.0,111880.0,0.31677068]
[1757486279821,0.20310828,111890.0,111880.0,0.32582509]
[1757486280119,0.20310828,111890.0,111880.0,0.31677068]
[1757486280313,0.06067794,111890.0,111880.0,0.17434034]
[1757486280513,0.20310828,111890.0,111880.0,0.17434034]
[1757486281017,0.03554,111880.0,111870.0,0.02181]
[1757486281219,0.34153862,111880.0,111870.0,0.02171]
[1757486281419,0.01386,111870.0,111860.0,0.16437451]
[1757486281716,0.17797034,111870.0,111860.0,0.00013417]
[1757486282027,0.19913646,111870.0,111860.0,0.16427451]
[1757486282217,0.03554,111870.0,111860.0,0.30670485]
[1757486282418,0.05671378,111870.0,111860.0,0.30670485]
[1757486282616,0.19914412,111870.0,111860.0,0.30670485]
[1757486283016,0.05671378,111870.0,111860.0,0.30670485]
[1757486283223,0.19914412,111870.0,111860.0,0.30670485]
[1757486284820,0.05671378,111870.0,111860.0,0.30670485]
[1757486285024,0.05671378,111870.0,111860.0,0.31588022]
[1757486295731,0.05671378,111870.0,111860.0,0.03101954]
[1757486295937,0.19914412,111870.0,111860.0,0.31588022]